Cogmind - Beta 14 @@@ ROGUE MODE // 2025.03.07 @ 19:29:26 Player: mathSq Result: Destroyed by L-31 Rogue with Katana Performance ------------- Evolutions (0) 0 Regions Visited (4) 800 Robots Destroyed (16) 80 Value Destroyed (428) 428 Prototype IDs (23) 460 Alien Tech Used (0) 0 Bonus (300) 300 TOTAL SCORE: 2068 Bonus ------- Aligned with FarCom 300 Cogmind --------- Core Integrity 0/250 Matter 243/300 Energy 160/160 System Corruption 3% Temperature Cool (91) Movement Core (400) Ox7 Location -9/Mines Parts ------- > --- POWER (1) -------- Light Nuclear Core > --- PROPULSION (2) --- (None) > --- UTILITY (2) ------ Medium Storage Unit Signal Interpreter > --- WEAPON (2) ------- Particle Cannon Rocket Launcher > --- INVENTORY (10) --- Flying Fortress v7 Improved Heat Sink Light Assault Rifle Peak State ------------ > --- POWER ------------ Light Nuclear Core > --- PROPULSION ------- Aluminum Leg Aluminum Leg > --- UTILITY ---------- Improved Heat Sink Signal Interpreter > --- WEAPON ----------- Light Assault Rifle Rocket Launcher > --- INVENTORY -------- Light Nuclear Core Flying Fortress v7 [Rating: 15] Favorites ----------- Power Light Nuclear Core Engine Light Ion Engine Power Core Light Nuclear Core Propulsion Aluminum Leg Leg Aluminum Leg Utility Signal Interpreter Device Improved Heat Sink Storage Medium Storage Unit Processor Signal Interpreter Weapon Light Assault Rifle Energy Cannon Particle Cannon Ballistic Gun Light Assault Rifle Launcher Rocket Launcher Special Weapon Mining Laser Build | -11 -10 -10 -10 -9 ------- Run | Yrd Mat Min Exi Min Slots Evolved . | . . . . . Power . | . . . . . Propulsion . | . . . . . Utility . | . . . . . Weapon . | . . . . . Parts Attached 25 | 6 1 15 1 2 Power 6 | 1 . 4 . 1 Engine 4 | 1 . 3 . . Core 2 | . . 1 . 1 Reactor . | . . . . . Propulsion 4 | 2 . 2 . . Treads . | . . . . . Leg 4 | 2 . 2 . . Wheel . | . . . . . Hover . | . . . . . Flight . | . . . . . Utility 6 | 1 1 3 1 . Device 4 | 1 1 2 . . Storage 1 | . . . 1 . Processor 1 | . . 1 . . Hackware . | . . . . . Protection . | . . . . . Artifact . | . . . . . Weapon 9 | 2 . 6 . 1 Energy Gun . | . . . . . Energy Cannon 1 | . . . . 1 Ballistic Gun 6 | 2 . 4 . . Ballistic Cannon . | . . . . . Launcher 1 | . . 1 . . Special Weapon 1 | . . 1 . . Impact Weapon . | . . . . . Slashing Weapon . | . . . . . Piercing Weapon . | . . . . . Special Melee Weapon . | . . . . . Unidentified Prototypes . | . . . . . Corrupted Parts 1 | . . 1 . . System Corruption 3 | . . 3 . . Parts Lost 13 | . 2 8 . 3 Power 4 | . 1 2 . 1 Propulsion 4 | . . 2 . 2 Utility 3 | . 1 2 . . Weapon 2 | . . 2 . . Highest Loss Streak 4 | . 2 4 . 3 To Critical Strikes . | . . . . . Average Slot Usage (%) 89 | . 69 89 100 95 Engine 3 | . 3 5 . . Core 8 | . . 7 14 11 Leg 25 | . 28 23 28 25 Device 13 | . 9 15 11 . Storage 1 | . . . 2 14 Processor 10 | . . 10 14 14 Ballistic Gun 18 | . 28 19 14 11 Launcher 6 | . . 4 14 14 Peak Build Rating 15 | 6 6 12 15 14 Average Rating 9 | 3 4 8 13 12 On Entrance 7 | . 6 5 12 13 Naked Turns . | . . . . . Heaviest Build 23 | 6 6 11 20 23 Greatest Support 20 | 20 20 20 20 20 Greatest Overweight (x) 2 | . . 2 . 2 Average Overweight (x) . | . . . . . Largest Inventory Capacity 10 | 5 5 5 10 10 Average Capacity 5 | 5 5 5 5 10 Most Carried 7 | 1 4 5 6 7 Average Carried 4 | . 1 4 5 6 Final Capacity 10 | 5 5 5 10 10 Final Carried 6 | . 4 5 6 6 Class Distribution -------------------- 76% | Scavenger-Mutant 23% | Mutant Dominant Class ---------------- Mutant | -10/Materials Scavenger-Mutant | -10/Mines Scavenger-Mutant | -10/Exiles Scavenger-Mutant | -9/Mines Resources | -11 -10 -10 -10 -9 ----------- Run | Yrd Mat Min Exi Min Matter Collected 652 | 272 10 322 5 43 Remotely . | . . . . . Salvage Created 390 | 38 108 221 . 23 Parts 31 | 2 5 22 . 2 Haulers Intercepted . | . . . . . Recyclers Shooed . | . . . . . Parts Field Recycled . | . . . . . Retrieved Matter . | . . . . . Parts Self-Destructed . | . . . . . Prevented . | . . . . . Kills | -11 -10 -10 -10 -9 ------- Run | Yrd Mat Min Exi Min Combat Hostiles Destroyed 17 | 1 3 11 . 2 Guns 10 | 1 2 7 . . Cannons 2 | . . 2 . . AOE 5 | . 1 2 . 2 Classes Destroyed 3 | 1 . 1 . 1 Swarmer 8 | . . 8 . . Grunt 8 | 1 3 3 . 1 Assembled 1 | . . . . 1 Best Kill Streak 3 | 1 3 3 . 2 Combat Bots Only 3 | 1 3 3 . 2 Max Kills in Single Turn 2 | 1 1 2 . 1 Gunslinging . | . . . . . Exploded 2 | . 1 2 . 1 Melee . | . . . . . Uniques/NPCs Destroyed . | . . . . . Combat | -11 -10 -10 -10 -9 -------- Run | Yrd Mat Min Exi Min Hostile Shots Fired 165 | 7 19 134 . 5 Missed 54 | 5 8 41 . . Damage Taken 1216 | 22 144 852 . 198 Core 275 | 12 10 156 . 97 Absorbed by Shields . | . . . . . Core Remaining (%) 95 | 95 . . . . Volleys Fired 70 | 6 10 50 . 4 Largest 2 | 2 2 2 . 2 Hottest 120 | 40 40 120 . 101 Shots Fired 118 | 12 20 78 . 8 Gun 105 | 12 20 73 . . Cannon 4 | . . . . 4 Launcher 6 | . . 2 . 4 Special 3 | . . 3 . . Kinetic 105 | 12 20 73 . . Thermal 7 | . . 3 . 4 Explosive 6 | . . 2 . 4 Electromagnetic . | . . . . . Robot Hit Streak 8 | 6 3 8 . 1 Robot Miss Streak 5 | 1 2 5 . 3 Penetration Max . | . . . . . Secondary Targets 2 | . . 2 . . Max Gunslinging Chain 1 | . . 1 . . Shots Hit Robots 59 | 8 12 36 . 3 Core Hits 34 | 3 8 17 . 6 Critical Kills . | . . . . . Critical Parts Destroyed . | . . . . . Critical Strikes . | . . . . . Melee Attacks . | . . . . . Impact . | . . . . . Slashing . | . . . . . Piercing . | . . . . . Sneak Attacks . | . . . . . Combat Hostiles . | . . . . . Follow-up Attacks . | . . . . . Damage Inflicted 1043 | 63 424 413 . 143 Guns 435 | 63 114 258 . . Cannons 21 | . . . . 21 Explosions 515 | . 310 83 . 122 Melee . | . . . . . Ramming . | . . . . . Kinetic 435 | 63 114 258 . . Thermal 306 | . 213 72 . 21 Explosive 205 | . . 83 . 122 Electromagnetic 97 | . 97 . . . Impact . | . . . . . Slashing . | . . . . . Piercing . | . . . . . Highest Corruption 3 | . . 3 3 3 Average Corruption 3 | . . 3 3 3 Corruption Purged . | . . . . . Corruption Blocked . | . . . . . Effects 13 | . . 6 5 2 Message Errors 1 | . . . . 1 Matter Fused 7 | . . 1 5 1 Heat Flow Errors 1 | . . 1 . . Energy Discharges 1 | . . 1 . . Data Loss (minor) 2 | . . 2 . . Alerts 1 | . . 1 . . Overload Shots . | . . . . . Overflow Damage 8 | . 8 . . . Projectiles . | . . . . . Explosions 8 | . 8 . . . Melee . | . . . . . Knockbacks . | . . . . . Impact . | . . . . . Kinetic . | . . . . . Secondary . | . . . . . Self-Inflicted Damage . | . . . . . Shots . | . . . . . Rammed . | . . . . . Targets Rammed . | . . . . . Kicked . | . . . . . Crushed . | . . . . . Highest Temperature 176 | 6 10 176 . 91 Average Temperature 39 | 6 5 47 . 48 Received Heat Transfer 249 | 12 81 156 . . Siege Activations . | . . . . . Robots Corrupted . | . . . . . Combat Hostiles . | . . . . . Parts Fried . | . . . . . Impact Corruptions . | . . . . . Robots Melted . | . . . . . Combat Hostiles . | . . . . . Parts Melted . | . . . . . Heat Transferred 337 | . 150 150 . 37 Parts Sabotaged . | . . . . . Parts Stolen . | . . . . . Parts Stripped . | . . . . . Power Chain Reactions . | . . . . . Alert | -11 -10 -10 -10 -9 ------- Run | Yrd Mat Min Exi Min Peak Influence 212 | 20 148 212 . 27 Initial 57 | . 13 57 . . Average 108 | 3 111 128 . 6 Maximum Alert Level 1 | . . 1 . . Low Security (%) 99 | 100 100 99 . 100 Level 1 . | . . . . . Level 2 . | . . . . . Level 3 . | . . . . . Level 4 . | . . . . . Level 5 . | . . . . . High Security . | . . . . . Max Security . | . . . . . Squads Dispatched 1 | . 1 . . . Investigation 1 | . 1 . . . Extermination . | . . . . . Reinforcement . | . . . . . Assault . | . . . . . Garrison . | . . . . . Intercept . | . . . . . Searches Triggered . | . . . . . Construction Impeded . | . . . . . Haulers Reinforced . | . . . . . Active Scanning Responses . | . . . . . Cargo Convoy Interrupts . | . . . . . Stealth | -11 -10 -10 -10 -9 --------- Run | Yrd Mat Min Exi Min Distress Signals . | . . . . . Communications Jammed . | . . . . . Distress Signals . | . . . . . Times Spotted 26 | 1 6 15 . 4 Peak Tracking Total 4 | 1 4 3 . 4 Tactical Retreats 1 | . . 1 . . Traps | -11 -10 -10 -10 -9 ------- Run | Yrd Mat Min Exi Min Traps Triggered 1 | . 1 . . . Indirectly . | . . . . . Trap Hack Attempts . | . . . . . Triggered . | . . . . . Disarmed . | . . . . . Reprogrammed . | . . . . . Reused . | . . . . . Traps Extracted . | . . . . . Installed . | . . . . . Triggered . | . . . . . Machines | -11 -10 -10 -10 -9 ---------- Run | Yrd Mat Min Exi Min Machines Disabled 5 | . 5 . . . Max in Single Turn 4 | . 4 . . . Machines Repaired . | . . . . . Machines Dismantled . | . . . . . Machines Sabotaged . | . . . . . Overloaded Fab Kills . | . . . . . Hacking | -11 -10 -10 -10 -9 --------- Run | Yrd Mat Min Exi Min Machines Accessed 4 | . 1 1 2 . Terminals 2 | . 1 1 . . Fabricators . | . . . . . Repair Stations . | . . . . . Recycling Units . | . . . . . Scanalyzers . | . . . . . Garrison Access . | . . . . . Total Hacks 9 | . 4 3 2 . Successful 7 | . 2 3 2 . Failed 2 | . 2 . . . Catastrophic . | . . . . . Database Lockouts . | . . . . . Manual 1 | . . . 1 . Terminals 7 | . 4 3 . . Fabricators . | . . . . . Repair Stations . | . . . . . Recycling Units . | . . . . . Scanalyzers . | . . . . . Garrison Access . | . . . . . Terminal Hacks 7 | . 2 3 2 . Record 4 | . . 3 1 . Maintenance Status 1 | . 1 . . . Zone Layout 1 | . 1 . . . Derelict Proto ID Bank 1 | . . . 1 . Fabricator Hacks . | . . . . . Repair Station Hacks . | . . . . . Recycling Unit Hacks . | . . . . . Scanalyzer . | . . . . . Garrison Access Hacks . | . . . . . Unauthorized Hacks . | . . . . . Terminals . | . . . . . Fabricators . | . . . . . Repair Stations . | . . . . . Recycling Units . | . . . . . Scanalyzers . | . . . . . Garrison Access . | . . . . . Data Cores Recovered . | . . . . . Used . | . . . . . Hacking Detections 2 | . 1 1 . . Full Trace Events 1 | . . 1 . . Feedback Events . | . . . . . Feedback Blocked . | . . . . . Robot Schematics Acquired . | . . . . . Robots Built . | . . . . . Authchips . | . . . . . Time . | . . . . . Total Robot Build Rating . | . . . . . Part Schematics Acquired . | . . . . . Parts Built . | . . . . . Authchips . | . . . . . Time . | . . . . . Total Part Build Rating . | . . . . . Parts Repaired . | . . . . . Time . | . . . . . Parts Recycled . | . . . . . Recycled Matter . | . . . . . Retrieved Matter . | . . . . . Retrieved Components . | . . . . . Parts Scanalyzed . | . . . . . Part Schematics Acquired . | . . . . . Parts Damaged . | . . . . . Bothacking | -11 -10 -10 -10 -9 ------------ Run | Yrd Mat Min Exi Min Used RIF Installer . | . . . . . Robots Hacked . | . . . . . Non-combat . | . . . . . Combat . | . . . . . Robot Hacks Applied . | . . . . . Relay Couplers Released . | . . . . . Fabnet Peak Effective % . | . . . . . Robots Rewired . | . . . . . Allies Hacked . | . . . . . Hacks Repelled . | . . . . . Allies | -11 -10 -10 -10 -9 -------- Run | Yrd Mat Min Exi Min Total Allies . | . . . . . Largest Group . | . . . . . Highest-Rated Group . | . . . . . Highest-Rated Ally . | . . . . . Total Orders . | . . . . . Ally Attacks . | . . . . . Total Damage . | . . . . . Kills . | . . . . . Allies Corrupted . | . . . . . Allies Melted . | . . . . . Intel | -11 -10 -10 -10 -9 ------- Run | Yrd Mat Min Exi Min Robot Analysis Total . | . . . . . Derelict Logs Recovered . | . . . . . Drone Launches . | . . . . . Drone Recoveries . | . . . . . Exploration | -11 -10 -10 -10 -9 ------------- Run | Yrd Mat Min Exi Min Turns Passed 1408 | 85 136 808 313 66 Spaces Moved 984 | 56 85 552 256 35 Core 17 | 13 . 4 . . Treads . | . . . . . Legs 967 | 43 85 548 256 35 Wheels . | . . . . . Hover . | . . . . . Flight . | . . . . . Fastest Speed 50 | 50 120 50 120 120 Average Speed 119 | 103 120 120 120 124 Slowest Speed 260 | 120 120 150 120 260 Overloaded Moves . | . . . . . Propulsion Burnouts . | . . . . . Robots Hopped . | . . . . . Cave-ins Triggered . | . . . . . Exploration Rate (%) 41 | 5 25 92 64 20 Regions Visited 4 Branch Regions 3 Pre-discovered Areas . | . . . . . Known Exits Taken 2 | . . 1 1 . Unknown Exits Taken 2 | 1 1 . . . Scrap Searched 3 | . . 1 . 2 Spaces Dug . | . . . . . Terrain Destroyed 49 | . 10 22 . 17 Melee . | . . . . . Projectile . | . . . . . AOE 49 | . 10 22 . 17 Terrain Rammed . | . . . . . Walls Destroyed . | . . . . . Machines Disabled . | . . . . . Actions | -11 -10 -10 -10 -9 --------- Run | Yrd Mat Min Exi Min Total 1115 | 73 103 625 264 50 Wait 11 | . 3 . . 8 Move 980 | 55 84 551 255 35 Hop . | . . . . . Pick Up 20 | 6 5 5 3 1 Fast Attach 7 | . . 7 . . Attach 11 | 6 1 3 . 1 Detach . | . . . . . Swap 7 | . . 5 1 1 Drop 9 | . . 4 5 . Fire 70 | 6 10 50 . 4 Melee . | . . . . . Ram . | . . . . . Kick . | . . . . . Crush . | . . . . . Escape Stasis . | . . . . . Rewire . | . . . . . Trap . | . . . . . Miscellaneous . | . . . . . Route ------- -11/Scrapyard -10/Materials -10/Mines (discovered 3 exits: *Mat x2 / *Exi) -10/Exiles (discovered 2 exits: *Min x2) -9/Mines (discovered 1 exit: [*Mat]) History --------- Turn | Location | Event 2 | -11/Scrapyard | Met Revision 17 54 | -11/Scrapyard | Discovered new exit (range 8) 86 | -11/Scrapyard | Entered Materials 209 | -10/Materials | Discovered new exit (range 5) 222 | -10/Materials | Entered Mines 460 | -10/Mines | Lost 4 parts (1p1n1u1w) 582 | -10/Mines | Discovered new exit (range 7) 616 | -10/Mines | Core integrity fell below 50% 640 | -10/Mines | Identified exit to Materials 652 | -10/Mines | Lost 4 parts (1p1n1u1w) 756 | -10/Mines | Received a Rocket Launcher from a helpful Derelict 915 | -10/Mines | Build established: Scavenger-Mutant 916 | -10/Mines | Discovered exit to Materials (range 3) 1025 | -10/Mines | Deemed a non-threat by the Exiles lab entrance 1025 | -10/Mines | Discovered new exit (range 5) 1029 | -10/Mines | Identified exit to Exiles 1030 | -10/Mines | Entered Exiles 1050 | -10/Exiles | Discovered new exit (range 14) 1064 | -10/Exiles | Identified exit to Mines 1087 | -10/Exiles | Met 8R-AWN 1107 | -10/Exiles | Met EX-HEX 1142 | -10/Exiles | Met EX-BIN 1156 | -10/Exiles | Aligned with FarCom system 1158 | -10/Exiles | Given EX-Vault access code 1185 | -10/Exiles | Opened EX-Vault 1196 | -10/Exiles | Found Flying Fortress v7 1221 | -10/Exiles | Warned to stay clear of 0b10 Research branches 1255 | -10/Exiles | Met EX-DEC 1329 | -10/Exiles | Discovered exit to Mines (range 14) 1343 | -10/Exiles | Left Exiles lab with Flying Fortress v7 1343 | -10/Exiles | Entered Mines 1384 | -9/Mines | Discovered new exit (range 14) 1390 | -9/Mines | Assembled infested the area 1399 | -9/Mines | Core integrity fell below 20% 1409 | -9/Mines | Destroyed by L-31 Rogue with Katana Last Messages --------------- Found 38 Matter. Found 49 Matter. EXIT=FOUND Acquired 43 matter. ALERT: Infestation in the mines, dispatching Demolisher response squad. Searching scrap... Found Imp. Ion Engine. Found Particle Cannon. Found 69 Matter. K-01 Serf collects debris. Acquired Particle Cannon. K-01 Serf collects debris. System corrupted: Matter fused (-8). The unstable cave ceiling collapses. C-30 ARC bursts open, deploying its payload. D-53 Grenadier unfolds itself. Aluminum Leg destroyed. G-34 Mercenary destroyed. Lgt. Nuclear Core destroyed. Aluminum Leg destroyed. Map ----- +----------------------------------------------------+ | ?????????????????????????????????????????????????? | | ?????????????????????????????????????????????????? | | ?????????????????????????????????????????????????? | | ?????????????????????????????????????????????????? | | ?????????????????????????????????????????????????? | | ?????????????????????????????????????????????????? | | ?????????????????????????????????????????????????? | | ?????????????????????????????????????????????????? | | ?????????????????????????????????????????????????? | | ?????????????????????????????????????????????????? | | ?????????????????????????????????????????????????? | | ?????????????????????????????????????????????????? | | ?????????????????????????????????????????????????? | | ?????????????????????????????????????????????????? | | ?????????????? ?????????????????????????????????? | | ????????????? #??????? ????????????????????????? | | ?????????????# #??????# #???????????????????????? | | ?????????????# #??????# #???????????????????????? | | ?????????????# #??????# #???????????????????????? | | ?????????????# #??????# ???????????????????????? | | ?????????????# #??????# #???????????????????????? | | ?????????##### #??????# #???????????????????????? | | ????????## # ##????## ######??????????????????? | | ????????# ##???# #??????????????????? | | ????????# t u##### #??????????????????? | | ?????????# @ ##?????????????????? | | ??????????# l #?????????????????? | | #######????# ##?????????????????? | | ###### k #?????????????????? | | ## ##?????????????????? | | """ #### #####??????????????????? | | """ ##### ##??# #% ??????????????????????? | | """ #???## #??# ??????????????????????? | | #????# #?# % ??????????????????????? | | #??? d????????????????????? | | #?? ## %= d ????????????????????? | | #?#??## #### * ??????????????????? | | #?????####?? ?????????????????? | | #### ##??????????# # ##????????????????? | | ???# ???????????## # #?????????????????? | | ???# ##???????????#$ ?# # ?????????????????? | | ???# ???????????? ?????# ????????????????? | | ???? ???????????? ??????? < ???????????????? | | ???? ??????????###??????? ????????????????? | | ???? ? ????????????????????? ??????????????????? | | ?????? ??????????????????????????????????????????? | | ??????? ?????????????????????????????????????????? | | ??????? ?????????????????????????????????????????? | | ?????????????????????????????????????????????????? | | ?????????????????????????????????????????????????? | +----------------------------------------------------+ Best States ------------- Heat Dissipation 39 Energy Generation 14 Energy Capacity 160 Matter Stores 300 Matter Capacity 300 Sight Range 16 Terrain Scan Range 14 Terrain Scan Density 10 Evasion (%) 55 Item Schematics ----------------- None Robot Schematics ------------------ None Fabricated ------------ Nothing Alien Tech Used ----------------- None Achievements -------------- None Challenges ------------ None Game ------ Seed CloakCouplerWings Manual? 0 Play Time 00:20:42 Cumulative 1.0 hours Start 2025.03.07 @ 19:09:36 End 2025.03.07 @ 19:29:26 Sessions 1 Manual Loads 0 Difficulty Rogue Special Mode None Game No. 2 Rogue 2 Adventurer 0 Explorer 0 Win Type - Total 0 Types 0/0/0/0/0/0/0/0/0 Lore% 5 Gallery% 2 Achievement% 1 Wizard Run 0 Options --------- Layout 0 ASCII 0 Keyboard 0 Movement Vi Keybinds 0 Fullscreen 1 Font 24/Tamsyn Map View 76x50 Zoom Use 0% Tactical HUD 0 Map Filters NONE Filters NONE Steam 1 RUN: a7a71e03-e14a-4e57-986f-9cf00f929519